Cogmind - Beta 17 @@@ ROGUE MODE // 2026.07.02 @ 02:51:27 Player: TheSkyeDoctor Result: Destroyed by D-53 Grenadier with Mini Grenade Launcher Performance ------------- Evolutions (0) 0 Regions Visited (2) 400 Robots Destroyed (18) 90 Value Destroyed (252) 252 Prototype IDs (0) 0 Alien Tech Used (0) 0 Bonus (0) 0 TOTAL SCORE: 742 Bonus ------- None Cogmind --------- Core Integrity 0/250 Matter 257/300 Energy 100/100 System Corruption 0% Temperature Cool (0) Movement Rolling (110) Ox2 Location -10/Mines Parts ------- > --- POWER (1) -------- (None) > --- PROPULSION (2) --- Wheel > --- UTILITY (2) ------ Large Storage Unit > --- WEAPON (2) ------- Rocket Launcher > --- INVENTORY (15) --- Improved Ion Engine Small Storage Unit High-capacity Battery (250) High-capacity Matter Pod (176) Structural Scanner Improved Terrain Scanner Light Armor Plating EM Pulse Gun Assault Rifle EMP Blaster Heavy Hammer Peak State ------------ > --- POWER ------------ Improved Ion Engine > --- PROPULSION ------- Light Treads Light Treads > --- UTILITY ---------- Large Storage Unit Hacking Suite > --- WEAPON ----------- Heavy Assault Rifle Heavy Assault Rifle > --- INVENTORY -------- Improved Ion Engine Wheel Small Storage Unit Structural Scanner Improved Terrain Scanner EM Pulse Gun Assault Rifle EMP Blaster Heavy Hammer [Rating: 13] Favorites ----------- Power Improved Ion Engine Engine Improved Ion Engine Propulsion Light Treads Treads Light Treads Wheel Wheel Utility Large Storage Unit Device Improved Terrain Scanner Storage Large Storage Unit Hackware Hacking Suite Weapon Heavy Assault Rifle Energy Gun EM Pulse Gun Ballistic Gun Heavy Assault Rifle Launcher Rocket Launcher Build | -11 -10 -10 ------- Run | Yrd Mat Min Slots Evolved . | . . . Power . | . . . Propulsion . | . . . Utility . | . . . Weapon . | . . . Parts Attached 14 | 7 5 2 Power 2 | 1 1 . Engine 2 | 1 1 . Core . | . . . Reactor . | . . . Propulsion 3 | 2 . 1 Treads 2 | 2 . . Leg . | . . . Wheel 1 | . . 1 Hover . | . . . Flight . | . . . Utility 4 | 2 2 . Device 1 | 1 . . Storage 2 | 1 1 . Processor . | . . . Hackware 1 | . 1 . Protection . | . . . Artifact . | . . . Weapon 5 | 2 2 1 Energy Gun 1 | 1 . . Energy Cannon . | . . . Ballistic Gun 3 | 1 2 . Ballistic Cannon . | . . . Launcher 1 | . . 1 Special Weapon . | . . . Impact Weapon . | . . . Slashing Weapon . | . . . Piercing Weapon . | . . . Special Melee Weapon . | . . . Unidentified Prototypes . | . . . Parts Lost 6 | . . 6 Power 1 | . . 1 Propulsion 2 | . . 2 Utility 1 | . . 1 Weapon 2 | . . 2 Highest Loss Streak 6 | . . 6 To Critical Strikes . | . . . Average Backups 8 | 1 7 10 Power . | . . 1 Propulsion . | . 1 . Utility 3 | . 2 4 Weapon 3 | . 2 4 Tool/Special . | . . . Unused Backups 8 | . 1 7 Power 2 | . 1 1 Propulsion . | . . . Utility 4 | . . 4 Weapon 2 | . . 2 Tool/Special . | . . . Average Slot Usage (%) 96 | . 94 97 Engine 13 | . 14 13 Treads 27 | . 28 26 Device 1 | . 4 . Storage 14 | . 14 14 Hackware 9 | . 4 14 Energy Gun 1 | . 2 . Ballistic Gun 25 | . 25 26 Peak Build Rating 13 | 9 13 13 Average Rating 10 | 5 10 12 On Entrance 7 | . 9 13 Avg Prop Armor Cover (%) . | . . . Naked Turns . | . . . Heaviest Build 33 | 15 33 33 Greatest Support 40 | 40 40 40 Greatest Overweight (x) 2 | . . 2 Average Overweight (x) . | . . . Largest Inventory Capacity 15 | 8 15 15 Average Capacity 13 | 6 13 15 Most Carried 12 | 2 10 12 Average Carried 8 | 1 7 10 Final Capacity 15 | 8 15 15 Final Carried 11 | 2 10 11 Class Distribution -------------------- 100% | Mutant Dominant Class ---------------- Mutant | -10/Materials Mutant | -10/Mines Resources | -11 -10 -10 ----------- Run | Yrd Mat Min Matter Collected 566 | 297 116 153 Remotely . | . . . Salvage Created 419 | 114 231 74 Parts 35 | 6 21 8 Haulers Intercepted . | . . . Recyclers Shooed . | . . . Parts Field Recycled . | . . . Retrieved Matter . | . . . Parts Self-Destructed . | . . . Prevented . | . . . Parts Restored . | . . . Kills | -11 -10 -10 ------- Run | Yrd Mat Min Combat Hostiles Destroyed 13 | . 9 4 Guns 13 | . 9 4 Classes Destroyed 6 | 2 4 . Builder 1 | . 1 . Tunneler 1 | 1 . . Recycler 1 | 1 . . Operator 2 | . 2 . Swarmer 10 | . 7 3 Grunt 3 | . 2 1 Best Kill Streak 3 | 2 3 3 Combat Bots Only 3 | . 3 3 Max Kills in Single Turn 1 | 1 1 1 Gunslinging . | . . . Exploded . | . . . Melee . | . . . Uniques/NPCs Destroyed . | . . . Combat | -11 -10 -10 -------- Run | Yrd Mat Min Hostile Shots Fired 106 | . 83 23 Missed 34 | . 26 8 Hits 72 | . 57 15 Projectile 72 | . 57 15 AOE 12 | . . 12 Damage Taken 1001 | . 484 517 Core 262 | . 61 201 Absorbed by Shields . | . . . Core Remaining (%) 100 | 100 . . Volleys Fired 51 | 9 32 10 Largest 2 | 2 2 2 Hottest 60 | 60 60 46 Shots Fired 99 | 18 64 17 Gun 96 | 18 64 14 Cannon . | . . . Launcher 3 | . . 3 Special . | . . . Kinetic 86 | 9 63 14 Thermal . | . . . Explosive 3 | . . 3 Electromagnetic 10 | 9 1 . Robot Hit Streak 7 | 6 7 6 Robot Miss Streak 9 | 1 9 1 Penetration Max . | . . . Secondary Targets 1 | . 1 . Max Gunslinging Chain 1 | . 1 . Shots Hit Robots 48 | 11 25 12 Core Hits 24 | 3 13 8 Critical Kills . | . . . Critical Parts Destroyed 1 | . . 1 Critical Strikes 1 | . . 1 Destroy 1 | . . 1 Melee Attacks . | . . . Impact . | . . . Slashing . | . . . Piercing . | . . . Sneak Attacks . | . . . Combat Hostiles . | . . . Follow-up Attacks . | . . . Damage Inflicted 832 | 131 515 186 Guns 805 | 131 515 159 Cannons . | . . . Explosions 27 | . . 27 Melee . | . . . Ramming . | . . . Kinetic 738 | 79 500 159 Thermal . | . . . Explosive 27 | . . 27 Electromagnetic 67 | 52 15 . Impact . | . . . Slashing . | . . . Piercing . | . . . Highest Corruption . | . . . Average Corruption . | . . . Corruption Purged . | . . . Corruption Blocked . | . . . Overload Shots . | . . . Overflow Damage . | . . . Projectiles . | . . . Explosions . | . . . Melee . | . . . Knockbacks . | . . . Impact . | . . . Kinetic . | . . . Secondary . | . . . Self-Inflicted Damage . | . . . Shots . | . . . Rammed . | . . . Targets Rammed . | . . . Kicked . | . . . Crushed . | . . . Highest Temperature 7 | . 7 . Average Temperature 3 | . 3 . Received Heat Transfer 24 | . 24 . Siege Activations . | . . . Martial Activations . | . . . Shielding Activations . | . . . Robots Disrupted . | . . . Combat Hostiles . | . . . Robots Corrupted . | . . . Combat Hostiles . | . . . Parts Fried . | . . . Impact Corruptions . | . . . Robots Melted . | . . . Combat Hostiles . | . . . Parts Melted . | . . . Heat Transferred . | . . . Parts Sabotaged . | . . . Parts Stolen . | . . . Parts Stripped . | . . . Power Chain Reactions . | . . . Alert | -11 -10 -10 ------- Run | Yrd Mat Min Maximum Alert Level . | . . . Low Security (%) 100 | 100 100 100 Level 1 . | . . . Level 2 . | . . . Level 3 . | . . . Level 4 . | . . . Level 5 . | . . . High Security . | . . . Max Security . | . . . Peak Influence 108 | 10 108 101 Initial 31 | . . 31 Average 32 | . 48 28 Influence Increases 364 | 10 233 121 Destroy 0b10 Robot/C 260 | . 180 80 Destroy 0b10 Robot/NC 25 | 10 15 . Destroy Leader 40 | . 30 10 Successful Hack 7 | . 7 . Destroy Structure 2 | . 1 1 Lose Combat Pursuer 30 | . . 30 Influence Decreases 364 | 10 151 203 Entered New Map 51 | . . 51 Time Decay 312 | 10 151 151 Lost Part 1 | . . 1 Squads Dispatched 1 | . 1 . Investigation . | . . . Extermination . | . . . Reinforcement 1 | . 1 . Assault . | . . . Garrison . | . . . Intercept . | . . . Searches Triggered . | . . . Construction Impeded . | . . . Haulers Reinforced . | . . . Active Scanning Responses . | . . . Cargo Convoy Interrupts . | . . . Stealth | -11 -10 -10 --------- Run | Yrd Mat Min Distress Signals 2 | . 2 . Communications Jammed . | . . . Distress Signals . | . . . Times Spotted 28 | . 19 9 Peak Tracking Total 6 | . 6 2 Tactical Retreats 2 | . . 2 Traps | -11 -10 -10 ------- Run | Yrd Mat Min Traps Triggered . | . . . Indirectly . | . . . Trap Hack Attempts . | . . . Triggered . | . . . Disarmed . | . . . Reprogrammed . | . . . Reused . | . . . Traps Extracted . | . . . Installed . | . . . Triggered . | . . . Machines | -11 -10 -10 ---------- Run | Yrd Mat Min Machines Disabled . | . . . Max in Single Turn . | . . . Machines Repaired . | . . . Machines Dismantled . | . . . Machines Sabotaged . | . . . Overloaded Fab Kills . | . . . Hacking | -11 -10 -10 --------- Run | Yrd Mat Min Machines Accessed 1 | . 1 . Terminals 1 | . 1 . Fabricators . | . . . Repair Stations . | . . . Recycling Units . | . . . Scanalyzers . | . . . Garrison Access . | . . . Total Hacks 1 | . 1 . Successful 1 | . 1 . Failed . | . . . Catastrophic . | . . . Database Lockouts . | . . . Manual 1 | . 1 . Terminals 1 | . 1 . Fabricators . | . . . Repair Stations . | . . . Recycling Units . | . . . Scanalyzers . | . . . Garrison Access . | . . . Terminal Hacks 1 | . 1 . Branch Access Points 1 | . 1 . Fabricator Hacks . | . . . Repair Station Hacks . | . . . Recycling Unit Hacks . | . . . Scanalyzer . | . . . Garrison Access Hacks . | . . . Unauthorized Hacks . | . . . Terminals . | . . . Fabricators . | . . . Repair Stations . | . . . Recycling Units . | . . . Scanalyzers . | . . . Garrison Access . | . . . Data Cores Recovered 1 | . 1 . Used . | . . . Hacking Detections . | . . . Full Trace Events . | . . . Feedback Events . | . . . Feedback Blocked . | . . . Robot Schematics Acquired . | . . . Robots Built . | . . . Authchips . | . . . Time . | . . . Total Robot Build Rating . | . . . Part Schematics Acquired . | . . . Parts Built . | . . . Authchips . | . . . Time . | . . . Total Part Build Rating . | . . . Part Studies Acquired . | . . . Parts Repaired . | . . . Time . | . . . Parts Recycled . | . . . Recycled Matter . | . . . Retrieved Matter . | . . . Retrieved Components . | . . . Parts Scanalyzed . | . . . Part Schematics Acquired . | . . . Parts Damaged . | . . . Bothacking | -11 -10 -10 ------------ Run | Yrd Mat Min Used RIF Installer . | . . . Robots Hacked . | . . . Non-combat . | . . . Combat . | . . . Robot Hacks Applied . | . . . Relay Couplers Released . | . . . Fabnet Peak Effective % . | . . . Robots Rewired . | . . . Allies Hacked . | . . . Hacks Repelled . | . . . Allies | -11 -10 -10 -------- Run | Yrd Mat Min Total Allies 1 | . . 1 Largest Group 1 | . . 1 Highest-Rated Group 31 | . . 31 Highest-Rated Ally 31 | . . 31 Total Orders . | . . . Ally Attacks 5 | . . 5 Total Damage 64 | . . 64 Kills . | . . . Allies Corrupted . | . . . Allies Melted . | . . . Intel | -11 -10 -10 ------- Run | Yrd Mat Min Active Infowar (turns) 143 | 28 115 . Terrain 143 | 28 115 . Robot Analysis Total . | . . . Derelict Logs Recovered 2 | . . 2 Drone Launches . | . . . Drone Recoveries . | . . . Exploration | -11 -10 -10 ------------- Run | Yrd Mat Min Turns Passed 1096 | 146 421 529 Spaces Moved 578 | 71 193 314 Core 5 | 5 . . Treads 561 | 66 193 302 Legs . | . . . Wheels 12 | . . 12 Hover . | . . . Flight . | . . . Fastest Speed 50 | 50 160 95 Average Speed 158 | 152 160 158 Slowest Speed 240 | 160 160 240 Overloaded Moves . | . . . Propulsion Burnouts . | . . . Robots Hopped . | . . . Potential Cave-ins . | . . . Cave-ins Triggered . | . . . Exploration Rate (%) 43 | 4 50 75 Regions Visited 2 Branch Regions 1 Pre-discovered Areas 1 | . . 1 Known Exits Taken 1 | . 1 . Unknown Exits Taken 1 | 1 . . Scrap Searched 1 | . . 1 Spaces Dug . | . . . Terrain Destroyed 14 | . . 14 Melee . | . . . Projectile . | . . . AOE 14 | . . 14 Terrain Rammed . | . . . Walls Destroyed . | . . . Machines Disabled . | . . . Actions | -11 -10 -10 --------- Run | Yrd Mat Min Total 658 | 88 241 329 Wait 3 | . 2 1 Move 576 | 70 192 314 Hop . | . . . Pick Up 10 | 2 6 2 Fast Attach 9 | 7 1 1 Attach 2 | . 1 1 Detach 2 | . 2 . Swap 3 | . 3 . Drop 2 | . 2 . Fire 51 | 9 32 10 Melee . | . . . Ram . | . . . Kick . | . . . Crush . | . . . Escape Stasis . | . . . Rewire . | . . . Trap . | . . . Miscellaneous . | . . . Route ------- -11/Scrapyard -10/Materials (discovered 2 exits: [*Mat] / *Min) -10/Mines (discovered 2 exits: [*Mat x2]) History --------- Turn | Location | Event 10 | -11/Scrapyard | Discovered new exit (range 13) 147 | -11/Scrapyard | Entered Materials 302 | -10/Materials | Build established: Mutant 352 | -10/Materials | Discovered new exit (range 15) 429 | -10/Materials | Identified exit to Mines 568 | -10/Materials | Entered Mines 568 | -10/Mines | Discovered new exit (range 12) 577 | -10/Mines | Assembled infested the area 633 | -10/Mines | Learned 4 Materials zone layouts 634 | -10/Mines | Learned location of Mines (-9) 717 | -10/Mines | Discovered new exit (range 4) 1075 | -10/Mines | Received a Mining Laser from a helpful Derelict 1077 | -10/Mines | Core integrity fell below 50% 1089 | -10/Mines | Received a Rocket Launcher from a helpful Derelict 1094 | -10/Mines | Core integrity fell below 20% 1097 | -10/Mines | Destroyed by D-53 Grenadier with Mini Grenade Launcher Last Messages --------------- the depths." 01085_ 40-3EE(g): "You know what I say? NO!" 01085_ D-53 Grenadier destroyed. 01086_ 40-3EE(g): "Everyone knows a good old rocket launcher goes a long way." 01086_ The unstable cave ceiling collapses. 01087_ 40-3EE(g): "Need to get rid of a swarm? Done. Need a big hole in the wall? Done." 01088_ 40-3EE(g): "Need a small hole in the wall? Leave that to the mining laser wimps, I say!" 01089_ 40-3EE(g): "Would you like a rocket launcher? I know I would if I were you, so I'm going to lend you mine." 01089_ 40-3EE(g) slips back into the shadows. 01089_ IJ-HBP(g) destroyed. 01090_ Acquired Rocket Launcher. 01093_ The unstable cave ceiling collapses. 01095_ Hacking Suite destroyed. 01096_ The unstable cave ceiling collapses. Map ----- +----------------------------------------------------+ | ????????????# #??????????????? | | ???????????## ##??????????????? | | ???????????# ##???????????????? | | ???????????# ##????????????????? | | ???????????## ##????????????????? | | ????????????## ## ######???????????? | | ##???????????# #### ## ##?###??????? | | ???????????# #??## ## ##?????? | | ???????????# #???## #?????? | | ?????????### #????## #?????? | | ????????## #?????# ##?????? | | #?####### #?????## #??????? | | ## #??????## ##?????? | | #########?????## #?????? | | ##???# ?????# #????? | | #???# ##???# #????? | | ##??# ##?? ##????? | | ####???# ### #####?????? | | ## ######## ### ###?????????? | | ??# "%" d ####???????????? | | ??# ##### ## # ## #???????????? | | #???# ## # ##??????????? | | ### #???# # % ##?????????? | | ??# #???# # #?????????? | | ??# ???# ## ] # #?????????? | | ??# ???" ## @ #?????????? | | ??#### ??" ; ##?????????? | | ?????? ?? "# # #?????????? | | ?????? ?? ## ???# ##?????????? | | ??????? ? ?### ???# ## ?????????? | | ??????? ? ???#????# ## ####????????? | | ??????? ? ????????# ### ???????????? | | ???????? ????????# #?# ???????????? | | ????????? ????????# #?# ??????????? | | ?????????# ????????# ? ??????????? | | ?????????????????????##?## ##?????????? | | ??????????????????????????####??????????? | | ????????????????????????????????????????? | | ????????????????????????????????????????? | | | | | | | | | | | | | | | | | | | | | | | +----------------------------------------------------+ Best States ------------- Heat Dissipation 25 Energy Generation 12 Energy Capacity 265 Matter Stores 300 Matter Capacity 300 Sight Range 16 Terrain Scan Range 16 Terrain Scan Density 10 Evasion (%) 41 Recoil Reduction 2 Offensive Hacking 10 Item Schematics ----------------- None Robot Schematics ------------------ None Fabricated ------------ Nothing Repaired ---------- Nothing Studied --------- None Alien Tech Used ----------------- None Achievements -------------- None Challenges ------------ None Game ------ Seed MissileHeatTether Manual? 0 Play Time 00:08:05 Cumulative 110.2 hours Start 2026.07.02 @ 02:44:36 End 2026.07.02 @ 02:51:27 Sessions 1 Manual Loads 0 Difficulty Rogue Special Mode None Game No. 235 Rogue 235 Adventurer 0 Explorer 0 Win Type - Total 0 Types 0/0/0/0/0/0/0/0/0/0 Lore% 50 Gallery% 50 Achievement% 41 Wizard Run 0 Options --------- Layout 1 ASCII 0 Keyboard 1 Movement Arrows Keybinds 0 Fullscreen 2 Font 24/Smallcaps Map View 50x35 Zoom Use 0% Tactical HUD 1 Map Filters NONE Filters NONE Steam 1 RUN: 1ebea0b5-e355-4012-8ac4-c5d08386c439